fUST/lending_fUST_20250720
["ID","MTS","AMOUNT","RATE_DAILY","PERIOD"]
[373390728,1752983450023,-1321.89,0.00020271,2]
[373390730,1752983450033,-460.0,0.00020271,2]
[373390732,1752983450042,-460.0,0.00020271,2]
[373390734,1752983450053,-460.0,0.00020271,2]
[373390736,1752983450063,-1417.4,0.00020271,2]
[373390738,1752983450072,-460.0,0.00020271,2]
[373390740,1752983450082,-460.0,0.00020271,2]
[373390742,1752983450091,-460.0,0.00020271,2]
[373390744,1752983450100,-555.83,0.00020271,2]
[373390746,1752983450110,-460.0,0.00020271,2]
[373390748,1752983450119,-998.75,0.00020271,2]
[373390750,1752983450128,-460.0,0.00020271,2]
[373390752,1752983450137,-477.87,0.00020271,2]
[373390754,1752983450147,-4300.79,0.00020271,2]
[373390756,1752983450156,-1826.24,0.00020272,2]
[373390758,1752983450168,-460.0,0.00020272,2]
[373390760,1752983450177,-503.2053472,0.00020294,2]
[373390762,1752983450187,-8241.69686622,0.00020314,3]
[373390764,1752983450197,-500.0,0.0002032,2]
[373390766,1752983450207,-360.0,0.0002032,2]
[373390768,1752983450216,-524.9251022,0.00020364,2]
[373390770,1752983450226,-460.0,0.0002037,2]
[373390772,1752983450236,-460.0,0.0002037,2]
[373390774,1752983450245,-479.16,0.0002037,2]
[373390776,1752983450256,-460.0,0.0002037,2]
[373390778,1752983450267,-386.14255745,0.0002037,2]
[373390780,1752983450276,-737.0,0.00020371,2]
[373390782,1752983450285,-460.0,0.00020371,2]
[373390784,1752983450297,-607.56,0.00020372,2]
[373390786,1752983450306,-1285.42,0.00020372,2]
[373390788,1752983450316,-3001.61,0.00020372,2]
[373390790,1752983450326,-751.75,0.00020374,2]
[373390792,1752983450335,-1036.92,0.00020374,2]
[373390794,1752983450345,-1511.79889742,0.00020429,2]
[373390796,1752983450355,-500.0,0.00020476,2]
[373390798,1752983450365,-500.0,0.00020476,2]
[373390800,1752983450375,-500.0,0.00020516,2]
[373390802,1752983450385,-8241.69686622,0.00020521,3]
[373390804,1752983450396,-476.42619115,0.0002053,3]
[373390806,1752983450406,-160.0,0.0002053,3]
[373390809,1752983450416,-214.5637056,0.0002053,3]
[373390811,1752983450427,-460.0,0.00020543,2]
[373390813,1752983450436,-460.0,0.00020543,2]
[373390815,1752983450445,-1186.22,0.00020543,2]
[373390817,1752983450455,-460.0,0.00020544,2]
[373390819,1752983450465,-460.0,0.00020544,2]
[373390821,1752983450474,-1131.3,0.00020544,2]
[373390823,1752983450484,-460.0,0.00020544,2]
[373390825,1752983450495,-460.0,0.00020544,2]
[373390827,1752983450505,-460.0,0.00020544,2]
[373390829,1752983450514,-460.0,0.00020544,2]
[373390831,1752983450523,-629.3,0.00020544,2]
[373390833,1752983450538,-460.0,0.00020544,2]
[373390835,1752983450547,-498.33,0.00020544,2]
[373390837,1752983450557,-167.89731905,0.00020544,2]
[373390839,1752983450566,-460.0,0.00020544,2]
[373390841,1752983450576,-579.55,0.00020544,2]
[373390843,1752983450585,-512.93491647,0.00020544,2]
[373390845,1752983450594,-460.0,0.00020544,2]
[373390847,1752983450604,-460.0,0.00020544,2]
[373390849,1752983450613,-2292.08,0.00020544,2]
[373390851,1752983450622,-475.07,0.00020544,2]
[373390853,1752983450632,-250.86874864,0.00020544,2]
[373390855,1752983450642,-464.94,0.00020544,2]
[373390857,1752983450651,-460.0,0.00020544,2]
[373390859,1752983450662,-460.0,0.00020544,2]
[373390861,1752983450674,-460.0,0.00020545,2]
[373390863,1752983450685,-460.0,0.00020545,2]
[373390865,1752983450695,-1321.89,0.00020545,2]
[373390867,1752983450705,-460.0,0.00020545,2]
[373390869,1752983450715,-460.0,0.00020545,2]
[373390871,1752983450723,-460.0,0.00020545,2]
[373390873,1752983450732,-1417.4,0.00020545,2]
[373390875,1752983450742,-460.0,0.00020545,2]
[373390888,1752983450858,-460.0,0.00020545,2]
[373390891,1752983450867,-460.0,0.00020545,2]
[373390893,1752983450878,-555.83,0.00020545,2]
[373390895,1752983450887,-460.0,0.00020545,2]
[373390897,1752983450897,-998.75,0.00020545,2]
[373390899,1752983450907,-460.0,0.00020545,2]
[373390901,1752983450916,-477.87,0.00020545,2]
[373390903,1752983450932,-4300.79,0.00020545,2]
[373390905,1752983450940,-1826.24,0.00020546,2]
[373390906,1752983450949,-460.0,0.00020546,2]
[373390909,1752983450959,-500.0,0.00020547,2]
[373390910,1752983450969,-500.0,0.00020547,2]
[373390913,1752983450978,-500.0,0.00020547,2]
[373390914,1752983450988,-500.0,0.00020547,2]
[373390916,1752983450998,-500.0,0.00020547,2]
[373390918,1752983451008,-500.0,0.00020547,2]
[373390920,1752983451018,-500.0,0.00020547,2]
[373390922,1752983451027,-500.0,0.00020547,2]
[373390925,1752983451037,-500.0,0.00020547,2]
[373390927,1752983451047,-500.0,0.00020547,2]
[373390929,1752983451056,-151.0,0.0002059,2]
[373390931,1752983451065,-151.0,0.0002059,2]
[373390933,1752983451075,-460.0,0.00020644,2]
[373390935,1752983451084,-460.0,0.00020644,2]
[373390936,1752983451093,-479.16,0.00020644,2]
[373390938,1752983451104,-737.0,0.00020645,2]
[373390940,1752983451114,-460.0,0.00020645,2]
[373390942,1752983451123,-607.56,0.00020646,2]
[373390944,1752983451134,-1285.42,0.00020646,2]
[373390946,1752983451143,-3001.61,0.00020646,2]
[373390949,1752983451154,-751.75,0.00020648,2]
[373390951,1752983451163,-1036.92,0.00020648,2]
[373390953,1752983451173,-174.0,0.00020682,2]
[373390956,1752983451192,-1000.0,0.00020696,2]
[373390958,1752983451204,-1000.0,0.00020696,2]
[373390960,1752983451214,-8241.69686622,0.00020728,3]
[373390962,1752983451224,-500.0,0.0002075,2]
[373390964,1752983451234,-500.0,0.0002075,2]
[373390966,1752983451244,-343.44845443,0.00020803,2]
[373390968,1752983451254,-460.0,0.00020817,2]
[373390970,1752983451264,-460.0,0.00020817,2]
[373390972,1752983451274,-1186.22,0.00020817,2]
[373390974,1752983451284,-500.0,0.00020818,2]
[373390976,1752983451294,-460.0,0.00020818,2]
[373390978,1752983451304,-460.0,0.00020818,2]
[373390980,1752983451316,-1131.3,0.00020818,2]
[373390982,1752983451326,-460.0,0.00020818,2]
[373390985,1752983451336,-460.0,0.00020818,2]
[373390987,1752983451345,-460.0,0.00020818,2]
[373390989,1752983451355,-460.0,0.00020818,2]
[373390991,1752983451365,-629.3,0.00020818,2]
[373390993,1752983451376,-460.0,0.00020818,2]
[373390995,1752983451385,-498.33,0.00020818,2]
[373390997,1752983451395,-460.0,0.00020818,2]
[373390999,1752983451405,-579.55,0.00020818,2]
[373391001,1752983451415,-502.25704218,0.00020818,2]
[373391003,1752983451427,-460.0,0.00020818,2]
[373391005,1752983451437,-2292.08,0.00020818,2]
[373391007,1752983451446,-475.07,0.00020818,2]
[373391009,1752983451456,-464.94,0.00020818,2]
[373391011,1752983451465,-460.0,0.00020818,2]
[373391013,1752983451475,-460.0,0.00020818,2]
[373391015,1752983451484,-1160.425,0.00020819,2]
[373391017,1752983451494,-460.0,0.00020819,2]
[373391019,1752983451503,-460.0,0.00020819,2]
[373391020,1752983451513,-1321.89,0.00020819,2]
[373391022,1752983451522,-460.0,0.00020819,2]
[373391024,1752983451532,-460.0,0.00020819,2]
[373391026,1752983451542,-460.0,0.00020819,2]
[373391027,1752983451551,-1417.4,0.00020819,2]
[373391029,1752983451561,-460.0,0.00020819,2]
[373391031,1752983451572,-460.0,0.00020819,2]
[373391033,1752983451581,-460.0,0.00020819,2]
[373391034,1752983451590,-555.83,0.00020819,2]
[373391036,1752983451600,-460.0,0.00020819,2]
[373391038,1752983451610,-998.75,0.00020819,2]
[373391040,1752983451619,-460.0,0.00020819,2]
[373391041,1752983451628,-477.87,0.00020819,2]
[373391043,1752983451638,-4300.79,0.00020819,2]
[373391045,1752983451647,-178.70934786,0.00020819,2]
[373391047,1752983451657,-1826.24,0.0002082,2]
[373391049,1752983451667,-460.0,0.0002082,2]
[373391050,1752983451678,-1000.02595806,0.00020868,2]
[373391052,1752983451688,-460.0,0.00020868,2]
[373391054,1752983451697,-460.0,0.00020918,2]
[373391055,1752983451708,-460.0,0.00020918,2]
[373391057,1752983451717,-479.16,0.00020918,2]
[373391059,1752983451728,-737.0,0.00020919,2]
[373391061,1752983451737,-460.0,0.00020919,2]
[373391062,1752983451747,-607.56,0.0002092,2]
[373391064,1752983451758,-1285.42,0.0002092,2]
[373391066,1752983451768,-3001.61,0.0002092,2]
[373391068,1752983451777,-751.75,0.00020922,2]
[373391069,1752983451786,-1036.92,0.00020922,2]
[373391071,1752983451796,-8241.69686622,0.00020934,4]
[373391073,1752983451805,-500.0,0.00021024,2]
[373391074,1752983451815,-500.0,0.00021024,2]
[373391076,1752983451824,-460.0,0.00021091,2]
[373391078,1752983451834,-316.33219379,0.00021091,2]
[373391079,1752983451843,-1186.22,0.00021091,2]
[373391081,1752983451853,-500.0,0.00021092,2]
[373391083,1752983451862,-460.0,0.00021092,2]
[373391085,1752983451871,-460.0,0.00021092,2]
[373391087,1752983451881,-1131.3,0.00021092,2]
[373391089,1752983451890,-460.0,0.00021092,2]
[373391090,1752983451900,-460.0,0.00021092,2]
[373391092,1752983451910,-460.0,0.00021092,2]
[373391094,1752983451921,-460.0,0.00021092,2]
[373391096,1752983451937,-629.3,0.00021092,2]
[373391098,1752983451947,-460.0,0.00021092,2]
[373391099,1752983451956,-498.33,0.00021092,2]
[373391101,1752983451967,-460.0,0.00021092,2]
[373391103,1752983451976,-579.55,0.00021092,2]
[373391105,1752983451985,-482.35685837,0.00021092,2]
[373391107,1752983451994,-2292.08,0.00021092,2]
[373391108,1752983452005,-475.07,0.00021092,2]
[373391110,1752983452014,-464.94,0.00021092,2]
[373391112,1752983452023,-460.0,0.00021092,2]
[373391114,1752983452032,-460.0,0.00021092,2]
[373391116,1752983452041,-460.0,0.00021093,2]
[373391117,1752983452051,-460.0,0.00021093,2]
[373391119,1752983452061,-1321.89,0.00021093,2]
[373391121,1752983452070,-460.0,0.00021093,2]
[373391123,1752983452080,-460.0,0.00021093,2]
[373391125,1752983452090,-460.0,0.00021093,2]
[373391127,1752983452100,-1417.4,0.00021093,2]
[373391128,1752983452110,-470.66205408,0.00021093,2]
[373391130,1752983452120,-460.0,0.00021093,2]
[373391132,1752983452129,-460.0,0.00021093,2]
[373391134,1752983452140,-555.83,0.00021093,2]
[373391136,1752983452149,-460.0,0.00021093,2]
[373391137,1752983452159,-998.75,0.00021093,2]
[373391139,1752983452172,-460.0,0.00021093,2]
[373391141,1752983452182,-477.87,0.00021093,2]
[373391143,1752983452192,-4300.79,0.00021093,2]
[373391145,1752983452203,-1826.24,0.00021094,2]
[373391147,1752983452212,-460.0,0.00021094,2]
[373391148,1752983452221,-8241.69686622,0.00021141,4]
[373391150,1752983452230,-460.0,0.00021192,2]
[373391152,1752983452240,-460.0,0.00021192,2]
[373391154,1752983452249,-479.16,0.00021192,2]
[373391156,1752983452258,-737.0,0.00021193,2]
[373391158,1752983452271,-460.0,0.00021193,2]
[373391160,1752983452281,-607.56,0.00021194,2]
[373391162,1752983452290,-1285.42,0.00021194,2]
[373391163,1752983452301,-3001.61,0.00021194,2]
[373391165,1752983452311,-751.75,0.00021196,2]
[373391167,1752983452322,-1036.92,0.00021196,2]
[373391169,1752983452332,-500.0,0.00021219,2]
[373391171,1752983452342,-505.90455104,0.00021244,2]
[373391173,1752983452353,-500.0,0.00021298,2]
[373391175,1752983452362,-500.0,0.00021298,2]
[373391177,1752983452372,-8241.69686622,0.00021348,5]
[373391178,1752983452382,-500.0,0.0002136,2]
[373391180,1752983452392,-500.0,0.0002136,2]
[373391182,1752983452402,-501.11953205,0.0002136,2]
[373391184,1752983452412,-460.0,0.00021365,2]
[373391186,1752983452423,-1186.22,0.00021365,2]
[373391187,1752983452433,-500.0,0.00021366,2]
[373391189,1752983452443,-460.0,0.00021366,2]
[373391191,1752983452454,-1131.3,0.00021366,2]
[373391193,1752983452464,-460.0,0.00021366,2]
[373391195,1752983452474,-460.0,0.00021366,2]
[373391196,1752983452484,-460.0,0.00021366,2]
[373391198,1752983452495,-460.0,0.00021366,2]
[373391200,1752983452505,-629.3,0.00021366,2]
[373391202,1752983452514,-460.0,0.00021366,2]
[373391204,1752983452524,-498.33,0.00021366,2]
[373391206,1752983452534,-460.0,0.00021366,2]
[373391208,1752983452544,-579.55,0.00021366,2]
[373391209,1752983452554,-2292.08,0.00021366,2]
[373391211,1752983452563,-475.07,0.00021366,2]
[373391213,1752983452572,-464.94,0.00021366,2]
[373391215,1752983452581,-460.0,0.00021366,2]
[373391217,1752983452591,-460.0,0.00021366,2]
[373391218,1752983452601,-460.0,0.00021367,2]
[373391220,1752983452612,-460.0,0.00021367,2]
[373391222,1752983452622,-1321.89,0.00021367,2]
[373391224,1752983452631,-460.0,0.00021367,2]
[373391226,1752983452641,-460.0,0.00021367,2]
[373391228,1752983452651,-591.10583106,0.00021367,2]
[373391230,1752983452662,-1417.4,0.00021367,2]
[373391231,1752983452675,-460.0,0.00021367,2]
[373391233,1752983452685,-460.0,0.00021367,2]
[373391235,1752983452694,-555.83,0.00021367,2]
[373391237,1752983452704,-460.0,0.00021367,2]
[373391239,1752983452714,-998.75,0.00021367,2]
[373391241,1752983452724,-460.0,0.00021367,2]
[373391242,1752983452733,-477.87,0.00021367,2]
[373391244,1752983452742,-4300.79,0.00021367,2]
[373391246,1752983452752,-1826.24,0.00021368,2]
[373391248,1752983452762,-460.0,0.00021368,2]
[373391250,1752983452772,-560.0,0.00021416,2]
[373391261,1752983452892,-460.0,0.00021466,2]
[373391263,1752983452902,-460.0,0.00021466,2]
[373391265,1752983452911,-479.16,0.00021466,2]
[373391266,1752983452922,-737.0,0.00021467,2]
[373391268,1752983452932,-460.0,0.00021467,2]
[373391270,1752983452942,-607.56,0.00021468,2]
[373391272,1752983452951,-1285.42,0.00021468,2]
[373391274,1752983452960,-3001.61,0.00021468,2]
[373391275,1752983452970,-751.75,0.0002147,2]
[373391277,1752983452980,-1036.92,0.0002147,2]
[373391279,1752983452990,-8241.69686622,0.00021555,5]
[373391281,1752983453001,-283.14999773,0.00021572,2]
[373391283,1752983453011,-500.0,0.00021572,2]
[373391285,1752983453020,-500.0,0.00021612,2]
[373391287,1752983453029,-405.58632253,0.00021639,2]
[373391288,1752983453038,-1186.22,0.00021639,2]
[373391290,1752983453047,-501.98,0.0002164,2]
[373391292,1752983453056,-460.0,0.0002164,2]
[373391294,1752983453066,-1131.3,0.0002164,2]
[373391295,1752983453075,-460.0,0.0002164,2]
[373391297,1752983453084,-460.0,0.0002164,2]
[373391299,1752983453094,-460.0,0.0002164,2]
[373391301,1752983453104,-460.0,0.0002164,2]
[373391303,1752983453113,-629.3,0.0002164,2]
[373391305,1752983453123,-460.0,0.0002164,2]
[373391307,1752983453133,-498.33,0.0002164,2]
[373391308,1752983453143,-460.0,0.0002164,2]
[373391310,1752983453152,-579.55,0.0002164,2]
[373391312,1752983453162,-2292.08,0.0002164,2]
[373391314,1752983453171,-475.07,0.0002164,2]
[373391316,1752983453181,-464.94,0.0002164,2]
[373391317,1752983453190,-460.0,0.0002164,2]
[373391319,1752983453199,-460.0,0.0002164,2]
[373391321,1752983453209,-460.0,0.00021641,2]
[373391323,1752983453218,-460.0,0.00021641,2]
[373391325,1752983453228,-1321.89,0.00021641,2]
[373391326,1752983453237,-460.0,0.00021641,2]
[373391328,1752983453246,-460.0,0.00021641,2]
[373391330,1752983453256,-1417.4,0.00021641,2]
[373391332,1752983453266,-460.0,0.00021641,2]
[373391334,1752983453275,-460.0,0.00021641,2]
[373391336,1752983453284,-555.83,0.00021641,2]
[373391337,1752983453294,-460.0,0.00021641,2]
[373391339,1752983453304,-998.75,0.00021641,2]
[373391341,1752983453313,-460.0,0.00021641,2]
[373391343,1752983453322,-477.87,0.00021641,2]
[373391345,1752983453332,-4300.79,0.00021641,2]
[373391347,1752983453341,-151.0,0.00021641,2]
[373391348,1752983453351,-1826.24,0.00021642,2]
[373391350,1752983453360,-460.0,0.00021642,2]
[373391352,1752983453369,-460.0,0.0002174,2]
[373391354,1752983453378,-550.66,0.0002174,2]
[373391356,1752983453387,-479.16,0.0002174,2]
[373391358,1752983453397,-737.0,0.00021741,2]
[373391359,1752983453406,-460.0,0.00021741,2]
[373391361,1752983453416,-607.56,0.00021742,2]
[373391363,1752983453427,-1285.42,0.00021742,2]
[373391365,1752983453436,-3001.61,0.00021742,2]
[373391367,1752983453446,-751.75,0.00021744,2]
[373391369,1752983453455,-1036.92,0.00021744,2]
[373391370,1752983453465,-8241.69686622,0.00021762,5]
[373391372,1752983453474,-500.0,0.00021846,2]
[373391374,1752983453485,-174.44900746,0.00021908,2]
[373391376,1752983453494,-1186.22,0.00021913,2]
[373391378,1752983453504,-152.27942809,0.00021914,2]
[373391380,1752983453513,-1131.3,0.00021914,2]
[373391381,1752983453523,-460.0,0.00021914,2]
[373391383,1752983453532,-460.0,0.00021914,2]
[373391385,1752983453541,-460.0,0.00021914,2]
[373391387,1752983453550,-460.0,0.00021914,2]
[373391389,1752983453560,-629.3,0.00021914,2]
[373391391,1752983453570,-460.0,0.00021914,2]
[373391392,1752983453579,-498.33,0.00021914,2]
[373391394,1752983453590,-460.0,0.00021914,2]
[373391396,1752983453599,-579.55,0.00021914,2]
[373391398,1752983453608,-2292.08,0.00021914,2]
[373391400,1752983453618,-475.07,0.00021914,2]
[373391402,1752983453628,-464.94,0.00021914,2]
[373391404,1752983453637,-460.0,0.00021914,2]
[373391406,1752983453646,-460.0,0.00021914,2]
[373391407,1752983453656,-460.0,0.00021915,2]
[373391409,1752983453665,-460.0,0.00021915,2]
[373391411,1752983453674,-1321.89,0.00021915,2]
[373391413,1752983453683,-460.0,0.00021915,2]
[373391415,1752983453692,-460.0,0.00021915,2]
[373391417,1752983453701,-1417.4,0.00021915,2]
[373391418,1752983453711,-460.0,0.00021915,2]
[373391420,1752983453720,-479.54308358,0.00021915,2]
[373391422,1752983453731,-151.0,0.00021915,2]
[373391424,1752983453740,-555.83,0.00021915,2]
[373391426,1752983453750,-151.0,0.00021915,2]
[373391428,1752983453759,-460.0,0.00021915,2]
[373391430,1752983453769,-998.75,0.00021915,2]
[373391431,1752983453778,-460.0,0.00021915,2]
[373391433,1752983453787,-477.87,0.00021915,2]
[373391435,1752983453797,-4300.79,0.00021915,2]
[373391437,1752983453807,-170.29433179,0.00021916,2]
[373391439,1752983453817,-1826.24,0.00021916,2]
[373391441,1752983453826,-460.0,0.00021916,2]
[373391443,1752983453835,-500.0,0.00021917,2]
[373391445,1752983453845,-500.0,0.00021917,2]
[373391446,1752983453854,-500.0,0.00021917,2]
[373391448,1752983453864,-500.0,0.00021917,2]
[373391450,1752983453873,-500.0,0.00021917,2]
[373391452,1752983453882,-192.28591105,0.00021917,2]
[373391454,1752983453892,-150.09319079,0.00021918,2]
[373391456,1752983453902,-572.01825787,0.00021964,2]
[373391457,1752983453911,-8241.69686622,0.00021969,6]
[373391459,1752983453927,-160.0,0.00022,2]
[373391461,1752983453945,-7000.0,0.00022,3]
[373391463,1752983453956,-460.0,0.00022014,2]
[373391465,1752983453965,-479.16,0.00022014,2]
[373391467,1752983453980,-737.0,0.00022015,2]
[373391469,1752983453994,-460.0,0.00022015,2]
[373391471,1752983454007,-607.56,0.00022016,2]
[373391472,1752983454016,-1285.42,0.00022016,2]
[373391474,1752983454026,-3001.61,0.00022016,2]
[373391476,1752983454036,-151.0,0.00022017,7]
[373391477,1752983454045,-151.0,0.00022017,7]
[373391478,1752983454054,-751.75,0.00022018,2]
[373391479,1752983454063,-1036.92,0.00022018,2]
[373391480,1752983454072,-500.0,0.0002212,2]
[373391481,1752983454081,-8241.69686622,0.00022176,6]
[373391482,1752983454091,-151.0,0.00022176,7]
[373391483,1752983454100,-151.0,0.00022176,7]
[373391484,1752983454110,-1186.22,0.00022187,2]
[373391485,1752983454119,-1131.3,0.00022188,2]
[373391486,1752983454127,-479.93187865,0.00022188,2]
[373391487,1752983454137,-460.0,0.00022188,2]
[373391488,1752983454146,-460.0,0.00022188,2]
[373391489,1752983454155,-460.0,0.00022188,2]
[373391490,1752983454163,-629.3,0.00022188,2]
[373391491,1752983454173,-460.0,0.00022188,2]
[373391492,1752983454183,-498.33,0.00022188,2]
[373391493,1752983454192,-460.0,0.00022188,2]
[373391494,1752983454201,-579.55,0.00022188,2]
[373391495,1752983454210,-2292.08,0.00022188,2]
[373391496,1752983454219,-475.07,0.00022188,2]
[373391497,1752983454228,-464.94,0.00022188,2]
[373391498,1752983454237,-460.0,0.00022188,2]
[373391499,1752983454246,-460.0,0.00022188,2]
[373391500,1752983454255,-410.55016636,0.00022189,2]
[373391501,1752983454266,-460.0,0.00022189,2]
[373391502,1752983454275,-1321.89,0.00022189,2]
[373391503,1752983454284,-476.52681994,0.00022189,2]
[373391504,1752983454294,-460.0,0.00022189,2]
[373391505,1752983454303,-1417.4,0.00022189,2]
[373391506,1752983454312,-460.0,0.00022189,2]
[373391507,1752983454320,-555.83,0.00022189,2]
[373391508,1752983454329,-460.0,0.00022189,2]
[373391509,1752983454339,-998.75,0.00022189,2]
[373391510,1752983454348,-460.0,0.00022189,2]
[373391511,1752983454357,-477.87,0.00022189,2]
[373391512,1752983454366,-4300.79,0.00022189,2]
[373391513,1752983454375,-1826.24,0.0002219,2]
[373391514,1752983454385,-460.0,0.0002219,2]
[373391516,1752983454393,-500.0,0.00022208,2]
[373391517,1752983454403,-152.15042828,0.00022235,2]
[373391518,1752983454412,-25000.0,0.00022235,2]
[373391519,1752983454421,-151.0,0.00022235,2]
[373391521,1752983454430,-151.0,0.00022235,2]
[373391522,1752983454439,-151.0,0.00022235,2]
[373391524,1752983454449,-13086.43033508,0.00022235,2]
[373391526,1752983454458,-151.0,0.00022235,2]
[373391527,1752983454467,-151.0,0.00022235,2]
[373391529,1752983454478,-151.0,0.00022235,2]
[373391532,1752983454488,-151.0,0.00022235,2]
[373391534,1752983454497,-151.0,0.00022235,2]
[373391536,1752983454506,-161.90412321,0.00022235,2]
[373391537,1752983454516,-207.4,0.00022235,2]
[373391540,1752983454525,-151.0,0.00022235,2]
[373391542,1752983454535,-151.0,0.00022235,2]
[373391544,1752983454545,-151.0,0.00022235,2]
[373391546,1752983454554,-151.0,0.00022235,2]
[373391548,1752983454564,-151.0,0.00022235,2]
[373391549,1752983454574,-151.0,0.00022235,2]
[373391552,1752983454584,-151.0,0.00022235,2]
[373391562,1752983454673,-151.0,0.00022235,2]
[373391564,1752983454683,-151.0,0.00022235,2]
[373391567,1752983454694,-151.0,0.00022235,2]
[373391569,1752983454704,-151.0,0.00022235,2]
[373391571,1752983454714,-151.0,0.00022235,2]
[373391573,1752983454724,-151.0,0.00022235,2]
[373391575,1752983454733,-151.0,0.00022235,2]
[373391577,1752983454742,-151.0,0.00022235,2]
[373391579,1752983454751,-151.0,0.00022235,2]
[373391581,1752983454761,-151.0,0.00022235,2]
[373391583,1752983454770,-151.0,0.00022235,2]
[373391585,1752983454781,-151.0,0.00022235,2]
[373391587,1752983454790,-151.0,0.00022235,2]
[373391589,1752983454799,-500.0,0.0002228,2]
[373391590,1752983454808,-460.0,0.00022288,2]
[373391592,1752983454819,-479.16,0.00022288,2]
[373391594,1752983454828,-737.0,0.00022289,2]
[373391596,1752983454838,-441.53016635,0.00022289,2]
[373391598,1752983454847,-607.56,0.0002229,2]
[373391601,1752983454858,-1285.42,0.0002229,2]
[373391603,1752983454868,-3001.61,0.0002229,2]
[373391604,1752983454878,-751.75,0.00022292,2]
[373391606,1752983454887,-1036.92,0.00022292,2]
[373391609,1752983454897,-8241.69686622,0.00022383,7]
[373391611,1752983454907,-500.0,0.00022394,2]
[373391613,1752983454916,-1186.22,0.00022461,2]
[373391615,1752983454930,-1131.3,0.00022462,2]
[373391617,1752983454940,-284.62792375,0.00022462,2]
[373391619,1752983454949,-444.2375463,0.00022462,2]
[373391621,1752983454959,-629.3,0.00022462,2]
[373391623,1752983454969,-460.0,0.00022462,2]
[373391625,1752983454979,-498.33,0.00022462,2]
[373391627,1752983454989,-460.0,0.00022462,2]
[373391629,1752983455000,-579.55,0.00022462,2]
[373391631,1752983455011,-2292.08,0.00022462,2]
[373391633,1752983455020,-475.07,0.00022462,2]
[373391635,1752983455030,-464.94,0.00022462,2]
[373391637,1752983455040,-460.0,0.00022462,2]
[373391639,1752983455049,-460.0,0.00022462,2]
[373391641,1752983455058,-460.0,0.00022463,2]
[373391643,1752983455068,-1321.89,0.00022463,2]
[373391646,1752983455078,-460.0,0.00022463,2]
[373391648,1752983455088,-1129.11537261,0.00022463,2]
[373391659,1752983455183,-288.28462739,0.00022463,2]
[373391661,1752983455193,-460.0,0.00022463,2]
[373391663,1752983455204,-555.83,0.00022463,2]
[373391665,1752983455213,-460.0,0.00022463,2]
[373391666,1752983455222,-998.75,0.00022463,2]
[373391669,1752983455232,-460.0,0.00022463,2]
[373391671,1752983455241,-477.87,0.00022463,2]
[373391673,1752983455251,-4300.79,0.00022463,2]
[373391675,1752983455261,-1826.24,0.00022464,2]
[373391677,1752983455271,-460.0,0.00022464,2]
[373391679,1752983455282,-250.0,0.00022535,2]
[373391681,1752983455291,-460.0,0.00022562,2]
[373391683,1752983455300,-479.16,0.00022562,2]